Cogmind - Beta 16.1 @@@ ROGUE MODE // 2026.03.17 @ 15:01:05 Player: MOPO3 Result: Destroyed by LY-KLZ(R) with Subdweller Machine Gun Performance ------------- Evolutions (0) 0 Regions Visited (3) 600 Robots Destroyed (30) 150 Value Destroyed (593) 593 Prototype IDs (1) 20 Alien Tech Used (0) 0 Bonus (0) 0 TOTAL SCORE: 1363 Bonus ------- None Cogmind --------- Core Integrity 0/250 Matter 177/300 Energy 100/100 System Corruption 2% Temperature Cool (0) Movement Treading (260) Ox1 Location -10/Subcaves Parts ------- > --- POWER (1) -------- Subdweller Power Source (fused) > --- PROPULSION (2) --- Spiked Treads > --- UTILITY (2) ------ Large Storage Unit Improved Terrain Scanner > --- WEAPON (2) ------- Light Cannon > --- INVENTORY (15) --- Subdweller Power Source Subdweller Power Source Disposable Heat Sink Medium Matter Pod (100) Structural Scanner Experimental Sensor Array Armor Integrity Analyzer Scrap Shield Authchip [Storage] Battle Rifle Battle Rifle Subdweller Machine Gun Makeshift Hammer Peak State ------------ > --- POWER ------------ Ion Engine > --- PROPULSION ------- Light Treads Light Treads > --- UTILITY ---------- Large Storage Unit Experimental Sensor Array > --- WEAPON ----------- Light Cannon Light Cannon > --- INVENTORY -------- Light Ion Engine Light Ion Engine Light Treads High-capacity Battery Medium Matter Pod Structural Scanner Improved Terrain Scanner Light Armor Plating Authchip [Storage] Assault Rifle Assault Rifle Light Assault Rifle Light Assault Rifle Makeshift Shrapnel Gun Mining Laser [Rating: 17] Favorites ----------- Power Ion Engine Engine Ion Engine Propulsion Light Treads Treads Light Treads Utility Large Storage Unit Device Improved Terrain Scanner Storage Large Storage Unit Protection Light Armor Plating Weapon Light Cannon Energy Gun Small Laser Ballistic Gun Assault Rifle Ballistic Cannon Light Cannon Special Weapon Mining Laser Build | -11 -10 -10 -10 ------- Run | Yrd Mat Min Sub Slots Evolved . | . . . . Power . | . . . . Propulsion . | . . . . Utility . | . . . . Weapon . | . . . . Parts Attached 22 | 8 4 3 7 Power 4 | 1 . . 3 Engine 4 | 1 . . 3 Core . | . . . . Reactor . | . . . . Propulsion 4 | 2 1 . 1 Treads 4 | 2 1 . 1 Leg . | . . . . Wheel . | . . . . Hover . | . . . . Flight . | . . . . Utility 6 | 2 2 1 1 Device 2 | 1 . 1 . Storage 2 | 1 1 . . Processor . | . . . . Hackware . | . . . . Protection 2 | . 1 . 1 Artifact . | . . . . Weapon 8 | 3 1 2 2 Energy Gun 1 | 1 . . . Energy Cannon . | . . . . Ballistic Gun 4 | 2 . 1 1 Ballistic Cannon 2 | . 1 1 . Launcher . | . . . . Special Weapon 1 | . . . 1 Impact Weapon . | . . . . Slashing Weapon . | . . . . Piercing Weapon . | . . . . Special Melee Weapon . | . . . . Unidentified Prototypes 1 | . . 1 . Parts Lost 5 | . . . 5 Power 1 | . . . 1 Propulsion 2 | . . . 2 Utility 1 | . . . 1 Weapon 1 | . . . 1 Highest Loss Streak 4 | . . . 4 To Critical Strikes . | . . . . Average Backups 11 | 1 7 13 12 Power 1 | . 1 2 2 Propulsion . | . . 1 . Utility 4 | . 2 3 6 Weapon 4 | . 4 6 4 Tool/Special . | . . . . Unused Backups 19 | . . . 19 Power 3 | . . . 3 Propulsion . | . . . . Utility 8 | . . . 8 Weapon 8 | . . . 8 Tool/Special . | . . . . Average Slot Usage (%) 96 | . 99 100 90 Engine 13 | . 14 14 13 Treads 25 | . 27 28 20 Device 5 | . 3 . 10 Storage 14 | . 14 14 14 Protection 8 | . 10 13 2 Ballistic Gun 7 | . 20 1 6 Ballistic Cannon 19 | . 7 26 20 Peak Build Rating 17 | 9 9 17 16 Average Rating 10 | 5 8 9 13 On Entrance 6 | . 9 8 10 Avg Prop Armor Cover (%) . | . . . . Naked Turns . | . . . . Heaviest Build 36 | 15 33 34 36 Greatest Support 40 | 40 40 40 40 Greatest Overweight (x) 9 | 4 1 . 9 Average Overweight (x) . | . . . . Largest Inventory Capacity 15 | 8 15 15 15 Average Capacity 14 | 7 14 15 14 Most Carried 15 | 3 15 15 15 Average Carried 12 | 1 8 13 13 Final Capacity 15 | 8 15 15 15 Final Carried 15 | 3 11 15 14 Class Distribution -------------------- 100% | Mutant Dominant Class ---------------- Mutant | -10/Materials Mutant | -10/Mines Mutant | -10/Subcaves Resources | -11 -10 -10 -10 ----------- Run | Yrd Mat Min Sub Matter Collected 1025 | 304 173 357 191 Remotely . | . . . . Salvage Created 828 | 124 255 272 177 Parts 55 | 8 18 20 9 Haulers Intercepted 1 | . 1 . . Recyclers Shooed . | . . . . Parts Field Recycled . | . . . . Retrieved Matter . | . . . . Parts Self-Destructed 9 | . . . 9 Prevented . | . . . . Parts Restored . | . . . . Kills | -11 -10 -10 -10 ------- Run | Yrd Mat Min Sub Combat Hostiles Destroyed 17 | . 6 5 6 Guns 3 | . 3 . . Cannons 14 | . 3 5 6 Classes Destroyed 9 | 2 5 1 1 Worker 2 | . 2 . . Builder 1 | . . 1 . Tunneler 4 | 2 . 2 . Hauler 1 | . 1 . . Recycler 3 | 1 . 2 . Watcher 2 | . 2 . . Swarmer 6 | . 3 3 . Grunt 5 | . 3 2 . Subdweller 6 | . . . 6 Best Kill Streak 4 | 3 4 2 4 Combat Bots Only 4 | . 3 2 4 Max Kills in Single Turn 1 | 1 1 1 1 Gunslinging . | . . . . Exploded . | . . . . Melee . | . . . . Uniques/NPCs Destroyed . | . . . . Combat | -11 -10 -10 -10 -------- Run | Yrd Mat Min Sub Hostile Shots Fired 72 | . 18 16 38 Missed 20 | . 6 6 8 Hits 52 | . 12 10 30 Projectile 52 | . 12 10 30 Damage Taken 1020 | . 115 125 780 Core 267 | . 29 17 221 Absorbed by Shields . | . . . . Core Remaining (%) 100 | 100 . . . Volleys Fired 69 | 4 20 23 22 Largest 2 | 2 2 2 2 Hottest 100 | 40 50 60 100 Shots Fired 136 | 8 40 46 42 Gun 45 | 8 30 3 4 Cannon 86 | . 10 43 33 Launcher . | . . . . Special 5 | . . . 5 Kinetic 131 | 8 40 46 37 Thermal 5 | . . . 5 Explosive . | . . . . Electromagnetic . | . . . . Robot Hit Streak 31 | 3 13 11 31 Robot Miss Streak 4 | 1 4 4 1 Penetration Max . | . . . . Secondary Targets 1 | . 1 . . Max Gunslinging Chain 1 | . 1 . . Shots Hit Robots 83 | 5 27 24 27 Core Hits 39 | 3 16 13 7 Critical Kills . | . . . . Critical Parts Destroyed . | . . . . Critical Strikes 3 | . 1 . 2 Blast 3 | . 1 . 2 Melee Attacks . | . . . . Impact . | . . . . Slashing . | . . . . Piercing . | . . . . Sneak Attacks . | . . . . Combat Hostiles . | . . . . Follow-up Attacks . | . . . . Damage Inflicted 1170 | 68 397 405 300 Guns 390 | 68 215 40 67 Cannons 775 | . 182 365 228 Explosions . | . . . . Melee . | . . . . Ramming 5 | . . . 5 Kinetic 1165 | 68 397 405 295 Thermal . | . . . . Explosive . | . . . . Electromagnetic . | . . . . Impact . | . . . . Slashing . | . . . . Piercing . | . . . . Highest Corruption 2 | . . . 2 Average Corruption 2 | . . . 2 Corruption Purged . | . . . . Corruption Blocked . | . . . . Effects 16 | . . . 16 Message Errors 4 | . . . 4 Matter Fused 2 | . . . 2 Heat Flow Errors 3 | . . . 3 Energy Discharges 1 | . . . 1 Parts Rejected 1 | . . . 1 Parts Fused 1 | . . . 1 Data Loss (minor) 1 | . . . 1 Misfires 3 | . . . 3 Overload Shots . | . . . . Overflow Damage 6 | . . 6 . Projectiles 6 | . . 6 . Explosions . | . . . . Melee . | . . . . Knockbacks 7 | . 1 4 2 Impact . | . . . . Kinetic 7 | . 1 4 2 Secondary . | . . . . Self-Inflicted Damage 5 | . . . 5 Shots . | . . . . Rammed . | . . . . Targets Rammed . | . . . . Kicked . | . . . . Crushed . | . . . . Highest Temperature 182 | . 16 90 182 Average Temperature 28 | . 11 22 84 Received Heat Transfer 258 | . 30 45 183 Siege Activations . | . . . . Martial Activations . | . . . . Shielding Activations . | . . . . Robots Disrupted . | . . . . Combat Hostiles . | . . . . Robots Corrupted . | . . . . Combat Hostiles . | . . . . Parts Fried . | . . . . Impact Corruptions . | . . . . Robots Melted . | . . . . Combat Hostiles . | . . . . Parts Melted 1 | . . . 1 Heat Transferred . | . . . . Parts Sabotaged . | . . . . Parts Stolen . | . . . . Parts Stripped . | . . . . Power Chain Reactions . | . . . . Alert | -11 -10 -10 -10 ------- Run | Yrd Mat Min Sub Maximum Alert Level . | . . . . Low Security (%) 100 | 100 100 100 . Level 1 . | . . . . Level 2 . | . . . . Level 3 . | . . . . Level 4 . | . . . . Level 5 . | . . . . High Security . | . . . . Max Security . | . . . . Peak Influence 85 | 10 85 69 . Initial . | . . . . Average 13 | 1 18 10 . Influence Increases 410 | 15 205 190 . Destroy 0b10 Robot/C 220 | . 120 100 . Destroy 0b10 Robot/NC 65 | 15 25 25 . Destroy Leader 46 | . 26 20 . Successful Hack 19 | . 19 . . Disable Machine 15 | . . 15 . Lose Combat Pursuer 45 | . 15 30 . Influence Decreases 410 | 15 205 190 . Time Decay 410 | 15 205 190 . Squads Dispatched . | . . . . Investigation . | . . . . Extermination . | . . . . Reinforcement . | . . . . Assault . | . . . . Garrison . | . . . . Intercept . | . . . . Searches Triggered . | . . . . Construction Impeded . | . . . . Haulers Reinforced . | . . . . Active Scanning Responses . | . . . . Cargo Convoy Interrupts . | . . . . Stealth | -11 -10 -10 -10 --------- Run | Yrd Mat Min Sub Distress Signals 1 | . 1 . . Communications Jammed . | . . . . Distress Signals . | . . . . Times Spotted 29 | . 11 7 11 Peak Tracking Total 4 | . 3 3 4 Tactical Retreats 3 | . 1 2 . Traps | -11 -10 -10 -10 ------- Run | Yrd Mat Min Sub Traps Triggered 3 | . 3 . . Indirectly . | . . . . Trap Hack Attempts . | . . . . Triggered . | . . . . Disarmed . | . . . . Reprogrammed . | . . . . Reused . | . . . . Traps Extracted . | . . . . Installed . | . . . . Triggered . | . . . . Machines | -11 -10 -10 -10 ---------- Run | Yrd Mat Min Sub Machines Disabled 1 | . . 1 . Max in Single Turn 1 | . . 1 . Machines Repaired . | . . . . Machines Dismantled . | . . . . Machines Sabotaged . | . . . . Overloaded Fab Kills . | . . . . Hacking | -11 -10 -10 -10 --------- Run | Yrd Mat Min Sub Machines Accessed 5 | . 5 . . Terminals 4 | . 4 . . Fabricators . | . . . . Repair Stations . | . . . . Recycling Units 1 | . 1 . . Scanalyzers . | . . . . Garrison Access . | . . . . Total Hacks 18 | . 18 . . Successful 7 | . 7 . . Failed 11 | . 11 . . Catastrophic 1 | . 1 . . Database Lockouts . | . . . . Manual 13 | . 13 . . Terminals 14 | . 14 . . Fabricators . | . . . . Repair Stations . | . . . . Recycling Units 4 | . 4 . . Scanalyzers . | . . . . Garrison Access . | . . . . Terminal Hacks 2 | . 2 . . Branch Access Points 1 | . 1 . . Maintenance Status 1 | . 1 . . Fabricator Hacks . | . . . . Repair Station Hacks . | . . . . Recycling Unit Hacks 2 | . 2 . . Report Inventory 1 | . 1 . . Retrieve Components 1 | . 1 . . Scanalyzer . | . . . . Garrison Access Hacks . | . . . . Unauthorized Hacks 3 | . 3 . . Terminals 3 | . 3 . . Botnet 3 | . 3 . . Fabricators . | . . . . Repair Stations . | . . . . Recycling Units . | . . . . Scanalyzers . | . . . . Garrison Access . | . . . . Data Cores Recovered . | . . . . Used . | . . . . Hacking Detections 5 | . 5 . . Full Trace Events . | . . . . Feedback Events . | . . . . Feedback Blocked . | . . . . Robot Schematics Acquired . | . . . . Robots Built . | . . . . Authchips . | . . . . Time . | . . . . Total Robot Build Rating . | . . . . Part Schematics Acquired . | . . . . Parts Built . | . . . . Authchips . | . . . . Time . | . . . . Total Part Build Rating . | . . . . Part Studies Acquired . | . . . . Parts Repaired . | . . . . Time . | . . . . Parts Recycled . | . . . . Recycled Matter . | . . . . Retrieved Matter . | . . . . Retrieved Components 3 | . 3 . . Parts Scanalyzed . | . . . . Part Schematics Acquired . | . . . . Parts Damaged . | . . . . Bothacking | -11 -10 -10 -10 ------------ Run | Yrd Mat Min Sub Used RIF Installer . | . . . . Robots Hacked . | . . . . Non-combat . | . . . . Combat . | . . . . Robot Hacks Applied . | . . . . Relay Couplers Released . | . . . . Fabnet Peak Effective % . | . . . . Robots Rewired . | . . . . Allies Hacked . | . . . . Hacks Repelled . | . . . . Allies | -11 -10 -10 -10 -------- Run | Yrd Mat Min Sub Total Allies . | . . . . Largest Group . | . . . . Highest-Rated Group . | . . . . Highest-Rated Ally . | . . . . Total Orders . | . . . . Ally Attacks . | . . . . Total Damage . | . . . . Kills . | . . . . Allies Corrupted . | . . . . Allies Melted . | . . . . Intel | -11 -10 -10 -10 ------- Run | Yrd Mat Min Sub Active Infowar (turns) 1237 | 33 196 23 985 Sensors 23 | . . 23 . Terrain 1214 | 33 196 . 985 Robot Analysis Total . | . . . . Derelict Logs Recovered 2 | . . 1 1 Drone Launches . | . . . . Drone Recoveries . | . . . . Exploration | -11 -10 -10 -10 ------------- Run | Yrd Mat Min Sub Turns Passed 3286 | 110 732 1164 1280 Spaces Moved 1630 | 52 392 634 552 Core 23 | 18 . . 5 Treads 1607 | 34 392 634 547 Legs . | . . . . Wheels . | . . . . Hover . | . . . . Flight . | . . . . Fastest Speed 50 | 50 160 160 160 Average Speed 174 | 158 161 160 201 Slowest Speed 500 | 250 240 160 500 Overloaded Moves . | . . . . Propulsion Burnouts . | . . . . Robots Hopped . | . . . . Potential Cave-ins . | . . . . Cave-ins Triggered . | . . . . Exploration Rate (%) 41 | 4 48 90 24 Regions Visited 3 Branch Regions 2 Pre-discovered Areas 2 | . . 1 1 Known Exits Taken 1 | . 1 . . Unknown Exits Taken 2 | 1 . 1 . Scrap Searched 2 | . . 2 . Spaces Dug . | . . . . Terrain Destroyed . | . . . . Melee . | . . . . Projectile . | . . . . AOE . | . . . . Terrain Rammed 1 | . . . 1 Walls Destroyed . | . . . . Machines Disabled . | . . . . Actions | -11 -10 -10 -10 --------- Run | Yrd Mat Min Sub Total 1925 | 68 451 735 671 Wait 125 | 2 17 66 40 Move 1627 | 51 391 633 552 Hop . | . . . . Pick Up 45 | 3 13 5 24 Fast Attach 14 | 7 2 . 5 Attach 7 | . 4 . 3 Detach 1 | . . . 1 Swap 17 | 1 3 7 6 Drop 19 | . 1 1 17 Fire 69 | 4 20 23 22 Melee . | . . . . Ram 1 | . . . 1 Kick . | . . . . Crush . | . . . . Escape Stasis . | . . . . Rewire . | . . . . Trap . | . . . . Miscellaneous . | . . . . Route ------- -11/Scrapyard -10/Materials (discovered 3 exits: [*Mat] / *Min / [*Sub]) -10/Mines (discovered 3 exits: [*Mat] / [*Exi] / [*Sub]) -10/Subcaves History --------- Turn | Location | Event 20 | -11/Scrapyard | Discovered new exit (range 16) 111 | -11/Scrapyard | Entered Materials 142 | -10/Materials | Identified exit to Mines 300 | -10/Materials | Build established: Mutant 392 | -10/Materials | Discovered new exit (range 11) 683 | -10/Materials | Discovered new exit (range 15) 843 | -10/Materials | Entered Mines 863 | -10/Mines | A weapon hastily lodged in a ceiling crevice suddenly fell to the ground 1131 | -10/Mines | Found a damaged Exp. Sensor Array with a note attached 1134 | -10/Mines | Found Prototype Device 1135 | -10/Mines | Identified Exp. Sensor Array 1157 | -10/Mines | Learned location of Storage (-7) 1402 | -10/Mines | Deemed a non-threat by the Exiles lab entrance 1403 | -10/Mines | Discovered new exit (range 5) 1669 | -10/Mines | Discovered new exit (range 9) 1938 | -10/Mines | Discovered new exit (range 6) 2007 | -10/Mines | Entered Subcaves 2008 | -10/Subcaves | Approached by a straggling Scientist 2019 | -10/Subcaves | Learned location of Zion (-7) 2226 | -10/Subcaves | Ambushed by swarm of Subdwellers 2330 | -10/Subcaves | Lost 5 allies 2644 | -10/Subcaves | Shifting Twisted Machinery released Spk. Treads 2670 | -10/Subcaves | Core integrity fell below 50% 2678 | -10/Subcaves | Core integrity fell below 20% 2715 | -10/Subcaves | Lost 4 parts (1p2n1w) 2801 | -10/Subcaves | Shifting Twisted Machinery released Battle Rifle 3287 | -10/Subcaves | Destroyed by LY-KLZ(R) with Subdweller Machine Gun Last Messages --------------- 02821_ Dropped Lgt. Assault Rifle. 02821_ Dropped Assault Rifle. 02824_ Acquired Battle Rifle. 02825_ Dropped Mining Laser. 02831_ Acquired Battle Rifle. 02834_ System corrupted: Heat flow error (+222). 02850_ System corrupted: Heat flow error (+154). 02924_ Sub. Power Source shoots sparks and powers down. 02947_ #F/2OQN7 CN4S N/AC65C7X:4VAAQY4DYK 03002_ System corrupted: Broken Sub. Power Source fused. 03020_ XHUW4MH3 QZ%X>URAJ5L |GNS0H4J,EB=0 03049_ System corrupted: FCS attempts to trigger Lgt. Cannon. 03049_ System corrupted: Lgt. Cannon misfires. 03087_ System corrupted: Energy discharge (-26). 03104_ 52-7ZW(u) tweaks Twisted Machinery. 03243_ System corrupted: FCS attempts to trigger Lgt. Cannon. 03243_ System corrupted: Lgt. Cannon misfires. 03266_ System corrupted: FCS attempts to trigger Lgt. Cannon. 03266_ System corrupted: Lgt. Cannon misfires. 03287_ System corrupted: Sub. Machine Gun rejected. Map ----- +----------------------------------------------------+ | ????????????????????????????????????????? | | ????????????????????????????????????????? | | ????????????????????????????????????????? | | ????????????????????????????????????????? | | ????????????????????????????????????????? | | ????????????????????????????????????????? | | ????????????????????????????????????????? | | ????????????????????????????????????????? | | ????????????????????????????????????????? | | ????????????????????????????????????????? | | ????????????????????????????????????????? | | ??????????????????? ???????????????????? | | ?????????????????? ????????????????? | | ?????????????????? ??????????????? | | ?????????????????? ????????????? | | ???????#?????????? ????????????? | | ????????????#????? # ?????????????? | | ???????????????#?? #?????????????? | | ????????????????## ??#????????????# | | ??????????????### #? ?????????????? | | ??????????????# # ???????????????? | | ????#?????????# R ????????????????? | | ??????????????? R??????????????????? | | ?????#???#?????# #???????????????????? | | ???????????????# #???????????????????? | | ????????????#??#@ #???????????????????? | | ?????????????#?# ##???????????????????? | | ???????????????# ##???????????????????? | | ????????????#??# ####??????????#?????? | | ???????????????# # #???????? ? #?#??? | | ?????#?????????## #?????"? ???#?# | | ????????????????# # ##???#?" #????#? | | ????????????#???#### ##???#"" ####???? | | ???????????#???????# #?####"" ## #???? | | ?????#?????????????# ##??##" #???? | | ????????????????#?## #?#?# #???? | | ????#???#?????#???# #??## #? #??#? | | ??????????????##### #?## ### #???? | | ??????????????# ## ### ## #???# | | ???????????#???# ## ## ####? | | ?????#?????????## ## ?? | | ????????????????## ## ?#? | | ??????#??????????####### ## ##### | | ???????????????????????# ## | | ????????????#?#????????# | | ???????????????????????# ## | | ?????????#?????????????####### # | | ?????????????????????????????########### | | ??????????????????????????????#????????## | | ??????#?#???#???????????????#??#???##???? | +----------------------------------------------------+ Best States ------------- Heat Dissipation 25 Energy Generation 18 Energy Capacity 250 Matter Stores 300 Matter Capacity 300 Sight Range 16 Robot Scan Range 20 Terrain Scan Range 16 Terrain Scan Density 10 Armor Coverage 150 Evasion (%) 40 Recoil Reduction 2 Authchip Count 1 Item Schematics ----------------- None Robot Schematics ------------------ None Fabricated ------------ Nothing Repaired ---------- Nothing Studied --------- None Alien Tech Used ----------------- None Achievements -------------- None Challenges ------------ None Game ------ Seed PointGlidesysBlaster Manual? 0 Play Time 00:29:00 Cumulative 6.8 hours Start 2026.03.17 @ 14:31:32 End 2026.03.17 @ 15:01:05 Sessions 1 Manual Loads 0 Difficulty Rogue Special Mode None Game No. 4 Rogue 4 Adventurer 0 Explorer 0 Win Type - Total 0 Types 0/0/0/0/0/0/0/0/0/0 Lore% 6 Gallery% 12 Achievement% 21 Wizard Run 0 Options --------- Layout 0 ASCII 0 Keyboard 0 Movement Numpad Keybinds 0 Fullscreen 1 Font 18/Terminus Map View 76x50 Zoom Use 0% Tactical HUD 1 Map Filters NONE Filters NONE Steam 1 RUN: c1ee1660-fa93-4894-ae8b-03658de7a696